[Event "*** Titled Tuesday Blitz"]
[Site "Chess.com"]
[Date "2019.09.03"]
[Round "1"]
[White "Roman_Ovetchkin"]
[Black "julinha97"]
[Result "1-0"]
[WhiteElo "2616"]
[BlackElo "2229"]
[TimeControl "180+2"]
[EndTime "15:07:12 PDT"]
[Termination "Roman_Ovetchkin won by resignation"]

1. d4 {[%clk 0:03:00]} 1... Nf6 {[%clk 0:03:00.6]} 2. c4 {[%clk 0:03:00.9]} 2...
g6 {[%clk 0:03:01.4]} 3. Nc3 {[%clk 0:03:01.7]} 3... Bg7 {[%clk 0:03:03]} 4. e4
{[%clk 0:03:02.2]} 4... d6 {[%clk 0:03:04.4]} 5. Nf3 {[%clk 0:03:01.3]} 5... O-O
{[%clk 0:03:05.9]} 6. Be2 {[%clk 0:03:02.5]} 6... e5 {[%clk 0:03:03.8]} 7. d5
{[%clk 0:03:03.6]} 7... a5 {[%clk 0:03:03.5]} 8. Bg5 {[%clk 0:03:04.4]} 8... Na6
{[%clk 0:03:03.6]} 9. Nd2 {[%clk 0:02:58.2]} 9... h6 {[%clk 0:02:55.6]} 10. Be3
{[%clk 0:02:58.3]} 10... Qe8 {[%clk 0:02:45.3]} 11. a3 {[%clk 0:02:57.7]} 11...
Nh7 {[%clk 0:02:39.5]} 12. b4 {[%clk 0:02:55.6]} 12... axb4 {[%clk 0:02:37.9]}
13. axb4 {[%clk 0:02:56.2]} 13... Bd7 {[%clk 0:02:30.3]} 14. Rb1 {[%clk
0:02:48.3]} 14... f5 {[%clk 0:02:29.6]} 15. f3 {[%clk 0:02:48.6]} 15... f4
{[%clk 0:02:29.5]} 16. Bf2 {[%clk 0:02:49.4]} 16... g5 {[%clk 0:02:20.2]} 17. h3
{[%clk 0:02:49.9]} 17... Nf6 {[%clk 0:02:12.3]} 18. c5 {[%clk 0:02:50.7]} 18...
h5 {[%clk 0:02:02.6]} 19. Nc4 {[%clk 0:02:50.6]} 19... Qg6 {[%clk 0:01:41.6]}
20. cxd6 {[%clk 0:01:43.7]} 20... cxd6 {[%clk 0:01:36.3]} 21. Nxd6 {[%clk
0:01:44.8]} 21... g4 {[%clk 0:01:37]} 22. hxg4 {[%clk 0:01:44.4]} 22... hxg4
{[%clk 0:01:04.7]} 23. Nc4 {[%clk 0:01:42.4]} 23... Rac8 {[%clk 0:00:45.4]} 24.
Qb3 {[%clk 0:01:31]} 24... Rfe8 {[%clk 0:00:41.7]} 25. Nb6 {[%clk 0:01:14.7]}
25... g3 {[%clk 0:00:28.8]} 26. Bg1 {[%clk 0:01:14.5]} 26... Rc7 {[%clk
0:00:09]} 27. Nb5 {[%clk 0:01:13.3]} 27... Bxb5 {[%clk 0:00:08.8]} 28. Bxb5
{[%clk 0:01:13.5]} 28... Rf8 {[%clk 0:00:04.4]} 29. d6+ {[%clk 0:01:12.7]} 29...
Rcf7 {[%clk 0:00:05.9]} 30. Bc4 {[%clk 0:01:12]} 1-0

[Event "*** Titled Tuesday Blitz"]
[Site "Chess.com"]
[Date "2019.09.03"]
[Round "1"]
[White "ClockworkKubrick"]
[Black "ENEASZ"]
[Result "0-1"]
[WhiteElo "2162"]
[BlackElo "2561"]
[TimeControl "180+2"]
[EndTime "15:07:14 PDT"]
[Termination "ENEASZ won by resignation"]

1. e4 {[%clk 0:03:00.3]} 1... d6 {[%clk 0:02:59.8]} 2. Nf3 {[%clk 0:03:01.1]}
2... Nf6 {[%clk 0:02:58.7]} 3. Nc3 {[%clk 0:03:01.9]} 3... e5 {[%clk 0:02:57.9]}
4. d3 {[%clk 0:03:03]} 4... g6 {[%clk 0:02:57.1]} 5. Be2 {[%clk 0:03:03]} 5...
Bg7 {[%clk 0:02:57.6]} 6. h3 {[%clk 0:03:04.3]} 6... O-O {[%clk 0:02:58.3]} 7.
O-O {[%clk 0:03:05.8]} 7... Re8 {[%clk 0:02:55.5]} 8. Nh2 {[%clk 0:03:06]} 8...
d5 {[%clk 0:02:54.4]} 9. exd5 {[%clk 0:03:01.8]} 9... Nxd5 {[%clk 0:02:56.3]}
10. Nxd5 {[%clk 0:03:01.7]} 10... Qxd5 {[%clk 0:02:51.7]} 11. Bf3 {[%clk
0:03:01.9]} 11... Qd6 {[%clk 0:02:45.6]} 12. Ng4 {[%clk 0:03:01.7]} 12... Bxg4
{[%clk 0:01:33.5]} 13. hxg4 {[%clk 0:02:54.2]} 13... Nc6 {[%clk 0:01:33.7]} 14.
g3 {[%clk 0:02:50.1]} 14... Rab8 {[%clk 0:01:30.1]} 15. Be3 {[%clk 0:02:48.9]}
15... Nd4 {[%clk 0:01:20.4]} 16. Bg2 {[%clk 0:02:49.4]} 16... c6 {[%clk
0:01:20.8]} 17. Qd2 {[%clk 0:02:50.2]} 17... a6 {[%clk 0:01:16.9]} 18. a4 {[%clk
0:02:48]} 18... Rbd8 {[%clk 0:01:15.5]} 19. Rac1 {[%clk 0:02:37.3]} 19... Rd7
{[%clk 0:01:13.8]} 20. Bh6 {[%clk 0:02:37.8]} 20... Bxh6 {[%clk 0:01:12.5]} 21.
Qxh6 {[%clk 0:02:36.9]} 21... Ne2+ {[%clk 0:01:13.7]} 22. Kh2 {[%clk 0:02:38.1]}
22... Nxc1 {[%clk 0:01:15.6]} 23. Rxc1 {[%clk 0:02:39.2]} 23... Qf6 {[%clk
0:01:14.9]} 24. Rf1 {[%clk 0:02:21.4]} 24... Rd4 {[%clk 0:01:11.5]} 25. b3
{[%clk 0:02:21]} 25... Rxg4 {[%clk 0:01:10.2]} 26. Be4 {[%clk 0:02:20.6]} 26...
Qg5 {[%clk 0:01:03.3]} 27. Qh3 {[%clk 0:02:19]} 27... f5 {[%clk 0:01:02.9]} 28.
Bf3 {[%clk 0:02:19.8]} 28... Rd4 {[%clk 0:01:03.4]} 29. Re1 {[%clk 0:02:18.6]}
29... h5 {[%clk 0:01:03.4]} 30. Kg2 {[%clk 0:02:19.3]} 30... h4 {[%clk
0:01:03.1]} 31. Rh1 {[%clk 0:02:18.6]} 31... Re7 {[%clk 0:01:02.3]} 32. Kf1
{[%clk 0:02:19.6]} 32... Qc1+ {[%clk 0:00:55.2]} 33. Kg2 {[%clk 0:02:20.3]}
33... Qxc2 {[%clk 0:00:55.1]} 34. gxh4 {[%clk 0:02:21.6]} 34... Qxd3 {[%clk
0:00:51.6]} 35. h5 {[%clk 0:02:22.8]} 35... e4 {[%clk 0:00:52.4]} 36. Be2 {[%clk
0:02:14.6]} 36... Qxh3+ {[%clk 0:00:52.9]} 37. Rxh3 {[%clk 0:02:16.5]} 37... Rg7
{[%clk 0:00:49.2]} 38. Bc4+ {[%clk 0:02:12.7]} 38... Rxc4 {[%clk 0:00:40.6]} 39.
bxc4 {[%clk 0:02:13.4]} 39... gxh5+ {[%clk 0:00:41.8]} 40. Kf1 {[%clk
0:02:13.9]} 40... Rg5 {[%clk 0:00:42.5]} 41. Ke2 {[%clk 0:02:15.1]} 41... f4
{[%clk 0:00:42]} 42. Rh4 {[%clk 0:02:15.1]} 42... Rf5 {[%clk 0:00:42.5]} 43. f3
{[%clk 0:02:15.1]} 43... e3 {[%clk 0:00:43.4]} 44. Kd3 {[%clk 0:02:15.3]} 44...
Kf7 {[%clk 0:00:44.3]} 45. Ke4 {[%clk 0:02:14.1]} 45... Ke6 {[%clk 0:00:45.1]}
46. Rh1 {[%clk 0:02:08.8]} 46... e2 {[%clk 0:00:43.6]} 47. Kd3 {[%clk 0:02:06]}
47... Re5 {[%clk 0:00:44.4]} 48. Re1 {[%clk 0:02:04.3]} 48... Kd6 {[%clk
0:00:45]} 49. Kd4 {[%clk 0:02:03.8]} 49... c5+ {[%clk 0:00:43.4]} 50. Kd3 {[%clk
0:02:04.5]} 50... Re3+ {[%clk 0:00:45.3]} 51. Kd2 {[%clk 0:02:05.2]} 51... Ke5
{[%clk 0:00:45.9]} 52. a5 {[%clk 0:02:04.8]} 52... Kd4 {[%clk 0:00:46.6]} 53.
Rh1 {[%clk 0:01:58.3]} 53... e1=Q+ {[%clk 0:00:47.4]} 0-1

[Event "*** Titled Tuesday Blitz"]
[Site "Chess.com"]
[Date "2019.09.03"]
[Round "1"]
[White "bilelou"]
[Black "eCztery"]
[Result "0-1"]
[WhiteElo "2551"]
[BlackElo "2201"]
[TimeControl "180+2"]
[EndTime "15:07:17 PDT"]
[Termination "eCztery won on time"]

1. e4 {[%clk 0:01:51]} 1... c5 {[%clk 0:02:56.4]} 2. Nf3 {[%clk 0:01:45.4]} 2...
Nc6 {[%clk 0:02:57.1]} 3. b4 {[%clk 0:01:45.4]} 3... cxb4 {[%clk 0:02:56.3]} 4.
d4 {[%clk 0:01:44.3]} 4... d5 {[%clk 0:02:56.7]} 5. exd5 {[%clk 0:01:44.4]} 5...
Qxd5 {[%clk 0:02:58.6]} 6. c4 {[%clk 0:01:42.8]} 6... Qh5 {[%clk 0:02:49.3]} 7.
Be2 {[%clk 0:01:38.4]} 7... Bg4 {[%clk 0:02:46.7]} 8. O-O {[%clk 0:01:39.2]}
8... O-O-O {[%clk 0:02:41.7]} 9. d5 {[%clk 0:01:39.4]} 9... Ne5 {[%clk 0:02:42]}
10. Nbd2 {[%clk 0:01:35.4]} 10... e6 {[%clk 0:02:35.6]} 11. Bb2 {[%clk
0:01:31.3]} 11... Nxf3+ {[%clk 0:02:33.8]} 12. Nxf3 {[%clk 0:01:31.3]} 12... Nf6
{[%clk 0:02:29.8]} 13. h3 {[%clk 0:01:30.8]} 13... Bd6 {[%clk 0:01:51.9]} 14.
hxg4 {[%clk 0:01:26.1]} 14... Nxg4 {[%clk 0:01:53.8]} 15. g3 {[%clk 0:01:26.6]}
15... Qh3 {[%clk 0:01:50.6]} 16. Qe1 {[%clk 0:01:01.7]} 16... h5 {[%clk
0:01:50.3]} 17. c5 {[%clk 0:00:26]} 17... h4 {[%clk 0:01:47.5]} 18. cxd6 {[%clk
0:00:20.9]} 18... hxg3 {[%clk 0:01:48.2]} 19. Qc1+ {[%clk 0:00:21.6]} 19... Kb8
{[%clk 0:01:49.4]} 20. Qc7+ {[%clk 0:00:22.5]} 20... Ka8 {[%clk 0:01:43.7]} 21.
Qxd8+ {[%clk 0:00:22]} 21... Rxd8 {[%clk 0:01:45.6]} 22. Bxg7 {[%clk 0:00:23.5]}
22... Rg8 {[%clk 0:01:39.3]} 23. Rac1 {[%clk 0:00:22.5]} 23... a6 {[%clk
0:01:00.6]} 24. d7 {[%clk 0:00:20.7]} 24... Rxg7 {[%clk 0:01:02]} 25. d8=Q+
{[%clk 0:00:20.5]} 25... Ka7 {[%clk 0:01:03.5]} 26. Rc8 {[%clk 0:00:19.5]} 26...
gxf2+ {[%clk 0:01:02.9]} 27. Rxf2 {[%clk 0:00:19.1]} 27... Nf6+ {[%clk
0:00:52.9]} 0-1

[Event "*** Titled Tuesday Blitz"]
[Site "Chess.com"]
[Date "2019.09.03"]
[Round "1"]
[White "Thjop"]
[Black "plumalka"]
[Result "1-0"]
[WhiteElo "2548"]
[BlackElo "2068"]
[TimeControl "180+2"]
[EndTime "15:07:19 PDT"]
[Termination "Thjop won by checkmate"]

1. e4 {[%clk 0:03:01.9]} 1... c5 {[%clk 0:03:00.8]} 2. Nf3 {[%clk 0:03:02.7]}
2... d6 {[%clk 0:03:02.2]} 3. Bb5+ {[%clk 0:02:58.6]} 3... Bd7 {[%clk
0:03:02.7]} 4. Bxd7+ {[%clk 0:02:59.5]} 4... Qxd7 {[%clk 0:03:04.6]} 5. O-O
{[%clk 0:03:00.9]} 5... g6 {[%clk 0:03:05.3]} 6. c3 {[%clk 0:02:56.7]} 6... Bg7
{[%clk 0:02:46.1]} 7. d4 {[%clk 0:02:55.5]} 7... cxd4 {[%clk 0:02:47.4]} 8. cxd4
{[%clk 0:02:54.9]} 8... Nf6 {[%clk 0:02:48.4]} 9. Nc3 {[%clk 0:02:53.6]} 9...
O-O {[%clk 0:02:48.7]} 10. Bg5 {[%clk 0:02:54.6]} 10... h6 {[%clk 0:02:47.5]}
11. Bf4 {[%clk 0:02:50.2]} 11... Nc6 {[%clk 0:02:46.6]} 12. Qd2 {[%clk
0:02:50.1]} 12... Rac8 {[%clk 0:02:45.4]} 13. Bxh6 {[%clk 0:02:45.6]} 13... Kh7
{[%clk 0:02:31]} 14. Bxg7 {[%clk 0:02:22.7]} 14... Kxg7 {[%clk 0:02:32.9]} 15.
Rad1 {[%clk 0:02:22.3]} 15... Rh8 {[%clk 0:02:33.2]} 16. h3 {[%clk 0:02:20.1]}
16... Rh5 {[%clk 0:02:24.5]} 17. h4 {[%clk 0:01:35.2]} 17... Rch8 {[%clk
0:02:21.6]} 18. Qf4 {[%clk 0:01:29.4]} 18... Nxd4 {[%clk 0:02:01.7]} 19. Rxd4
{[%clk 0:00:53.1]} 19... e5 {[%clk 0:01:30.9]} 20. Nxe5 {[%clk 0:00:52]} 20...
Rxe5 {[%clk 0:01:18.9]} 21. Rfd1 {[%clk 0:00:48.5]} 21... Reh5 {[%clk
0:01:04.9]} 22. Rxd6 {[%clk 0:00:44.9]} 22... Qe7 {[%clk 0:01:05.7]} 23. g3
{[%clk 0:00:43.8]} 23... g5 {[%clk 0:01:04.8]} 24. hxg5 {[%clk 0:00:33.4]} 24...
Rh1+ {[%clk 0:00:58.4]} 25. Kg2 {[%clk 0:00:34.3]} 25... R1h2+ {[%clk
0:00:52.1]} 26. Kf3 {[%clk 0:00:32.2]} 26... Nh5 {[%clk 0:00:53.2]} 27. Qf5
{[%clk 0:00:25.9]} 27... Rf8 {[%clk 0:00:46.6]} 28. Rh6 {[%clk 0:00:21.4]} 28...
Qb4 {[%clk 0:00:36.9]} 29. Qh7# {[%clk 0:00:20.2]} 1-0

[Event "*** Titled Tuesday Blitz"]
[Site "Chess.com"]
[Date "2019.09.03"]
[Round "1"]
[White "goofypenguin96"]
[Black "Renier07"]
[Result "1/2-1/2"]
[WhiteElo "2248"]
[BlackElo "2594"]
[TimeControl "180+2"]
[EndTime "15:07:30 PDT"]
[Termination "Game drawn by agreement"]

1. e4 {[%clk 0:02:58.2]} 1... c5 {[%clk 0:03:01]} 2. Nf3 {[%clk 0:02:58.2]} 2...
e6 {[%clk 0:03:01.6]} 3. d4 {[%clk 0:02:59.4]} 3... cxd4 {[%clk 0:03:02.8]} 4.
Nxd4 {[%clk 0:03:00.4]} 4... Nc6 {[%clk 0:03:04.1]} 5. Nc3 {[%clk 0:03:00.3]}
5... Qc7 {[%clk 0:03:03.4]} 6. Be3 {[%clk 0:02:58.9]} 6... a6 {[%clk 0:03:04.6]}
7. Qf3 {[%clk 0:02:58.8]} 7... Bd6 {[%clk 0:03:03.3]} 8. O-O-O {[%clk
0:02:56.9]} 8... Be5 {[%clk 0:03:04.6]} 9. Nxc6 {[%clk 0:02:34.6]} 9... dxc6
{[%clk 0:03:00.4]} 10. Bd4 {[%clk 0:02:33.6]} 10... Bxd4 {[%clk 0:03:01.3]} 11.
Rxd4 {[%clk 0:02:35.5]} 11... Nf6 {[%clk 0:02:59.6]} 12. Qg3 {[%clk 0:02:35.4]}
12... Qxg3 {[%clk 0:02:57.7]} 13. hxg3 {[%clk 0:02:35.5]} 13... e5 {[%clk
0:02:58.6]} 14. Rd2 {[%clk 0:02:35.4]} 14... Ke7 {[%clk 0:02:54.7]} 15. f3
{[%clk 0:02:35.7]} 15... Be6 {[%clk 0:02:50.5]} 16. g4 {[%clk 0:02:36]} 16... h6
{[%clk 0:02:52]} 17. Be2 {[%clk 0:02:32.5]} 17... Rad8 {[%clk 0:02:52.2]} 18.
Na4 {[%clk 0:02:30.3]} 18... Rxd2 {[%clk 0:02:52.6]} 19. Kxd2 {[%clk 0:02:31.5]}
19... h5 {[%clk 0:02:41.1]} 20. gxh5 {[%clk 0:02:30.9]} 20... Rxh5 {[%clk
0:02:38.1]} 21. Rxh5 {[%clk 0:02:30.8]} 21... Nxh5 {[%clk 0:02:39.7]} 22. Nc5
{[%clk 0:02:31.8]} 22... Bc8 {[%clk 0:02:40.1]} 23. Ke3 {[%clk 0:02:28.4]} 23...
a5 {[%clk 0:02:21.3]} 24. a3 {[%clk 0:02:10.2]} 24... Kd6 {[%clk 0:02:22.3]} 25.
b4 {[%clk 0:02:09.9]} 25... Nf4 {[%clk 0:02:10.1]} 26. Bf1 {[%clk 0:01:44.8]}
26... b6 {[%clk 0:01:51.7]} 27. Nd3 {[%clk 0:01:44.3]} 27... g5 {[%clk
0:01:47.1]} 28. Nb2 {[%clk 0:01:36.2]} 28... axb4 {[%clk 0:01:42.7]} 29. axb4
{[%clk 0:01:35.3]} 29... b5 {[%clk 0:01:34.4]} 30. Nd3 {[%clk 0:01:34.8]} 30...
Nxd3 {[%clk 0:01:28.7]} 31. Bxd3 {[%clk 0:01:34]} 31... Be6 {[%clk 0:01:25.1]}
32. c3 {[%clk 0:01:34]} 32... f6 {[%clk 0:01:23]} 33. Bf1 {[%clk 0:01:33.6]}
33... Bd7 {[%clk 0:01:24.1]} 34. g4 {[%clk 0:01:33.9]} 34... c5 {[%clk
0:01:25.1]} 35. Be2 {[%clk 0:01:31.6]} 35... Kc6 {[%clk 0:01:14.4]} 36. Bd1
{[%clk 0:01:30.6]} 36... Be6 {[%clk 0:01:15.4]} 37. Bc2 {[%clk 0:01:24.6]} 37...
Bc4 {[%clk 0:01:14.7]} 38. Bd1 {[%clk 0:01:24.7]} 38... Ba2 {[%clk 0:01:11.7]}
39. Be2 {[%clk 0:01:22.6]} 39... Bb3 {[%clk 0:01:11.8]} 40. Kd2 {[%clk
0:01:16.3]} 40... Ba4 {[%clk 0:01:05.2]} 41. Ke3 {[%clk 0:01:10.8]} 41... c4
{[%clk 0:01:06.2]} 42. Kd2 {[%clk 0:01:10.7]} 42... Bb3 {[%clk 0:01:07.6]} 43.
Bd1 {[%clk 0:01:10.3]} 43... Bxd1 {[%clk 0:01:07.6]} 44. Kxd1 {[%clk 0:01:10.8]}
44... Kb6 {[%clk 0:01:09.1]} 45. Kd2 {[%clk 0:01:09.9]} 1/2-1/2

[Event "*** Titled Tuesday Blitz"]
[Site "Chess.com"]
[Date "2019.09.03"]
[Round "1"]
[White "alishersuleymenov"]
[Black "icychess54"]
[Result "1-0"]
[WhiteElo "2606"]
[BlackElo "2225"]
[TimeControl "180+2"]
[EndTime "15:07:31 PDT"]
[Termination "alishersuleymenov won by resignation"]

1. d4 {[%clk 0:03:01.9]} 1... d5 {[%clk 0:02:59.9]} 2. Bf4 {[%clk 0:03:02.7]}
2... Nf6 {[%clk 0:03:00.5]} 3. e3 {[%clk 0:03:03.6]} 3... c6 {[%clk 0:03:01.4]}
4. Nf3 {[%clk 0:02:58.8]} 4... Bf5 {[%clk 0:03:01.5]} 5. c4 {[%clk 0:02:59.4]}
5... e6 {[%clk 0:03:02.9]} 6. Qb3 {[%clk 0:02:59.9]} 6... Qc8 {[%clk 0:03:02.8]}
7. Nc3 {[%clk 0:02:58.5]} 7... Nbd7 {[%clk 0:02:59.1]} 8. Rc1 {[%clk 0:02:43.9]}
8... h6 {[%clk 0:02:46.4]} 9. Be2 {[%clk 0:02:33.3]} 9... Be7 {[%clk 0:02:47.1]}
10. O-O {[%clk 0:02:33.7]} 10... O-O {[%clk 0:02:48.6]} 11. h3 {[%clk
0:02:32.3]} 11... Ne4 {[%clk 0:02:37.3]} 12. cxd5 {[%clk 0:02:30.9]} 12... Nxc3
{[%clk 0:02:38]} 13. bxc3 {[%clk 0:02:32.8]} 13... exd5 {[%clk 0:02:37.5]} 14.
c4 {[%clk 0:02:34.1]} 14... dxc4 {[%clk 0:02:30]} 15. Bxc4 {[%clk 0:02:36]}
15... Nb6 {[%clk 0:02:27.8]} 16. Be2 {[%clk 0:02:36.9]} 16... Be4 {[%clk
0:02:06.1]} 17. Ne5 {[%clk 0:02:15.9]} 17... Qf5 {[%clk 0:02:02.4]} 18. Qd1
{[%clk 0:01:50.2]} 18... Bg5 {[%clk 0:01:40.1]} 19. Bxg5 {[%clk 0:01:38.6]}
19... Qxg5 {[%clk 0:01:38.4]} 20. Bf3 {[%clk 0:01:39.8]} 20... Bf5 {[%clk
0:01:32.4]} 21. Kh1 {[%clk 0:01:34.4]} 21... Rfe8 {[%clk 0:01:29.2]} 22. a4
{[%clk 0:01:32]} 22... Qh4 {[%clk 0:01:04.6]} 23. Kh2 {[%clk 0:01:25.1]} 23...
Nd5 {[%clk 0:01:01]} 24. Bxd5 {[%clk 0:01:19.5]} 24... cxd5 {[%clk 0:01:01.7]}
25. Rc7 {[%clk 0:01:20.6]} 25... Rac8 {[%clk 0:00:52.9]} 26. Rxb7 {[%clk
0:01:11.6]} 26... Rc2 {[%clk 0:00:52.7]} 27. Qf3 {[%clk 0:01:12.4]} 27... Qg5
{[%clk 0:00:42.4]} 28. Nxf7 {[%clk 0:01:07.8]} 28... Qf6 {[%clk 0:00:20.7]} 29.
Ne5 {[%clk 0:01:07.7]} 29... Rec8 {[%clk 0:00:17]} 30. Qxd5+ {[%clk 0:01:03]}
30... Kh7 {[%clk 0:00:17.3]} 31. Qf7 {[%clk 0:00:48.6]} 31... Qg5 {[%clk
0:00:17.5]} 32. Nf3 {[%clk 0:00:47.9]} 32... Qg6 {[%clk 0:00:14.1]} 33. Qxg6+
{[%clk 0:00:49]} 33... Kxg6 {[%clk 0:00:16]} 34. Rxa7 {[%clk 0:00:50.9]} 34...
Bd3 {[%clk 0:00:16.6]} 35. Ne5+ {[%clk 0:00:51.1]} 1-0

[Event "*** Titled Tuesday Blitz"]
[Site "Chess.com"]
[Date "2019.09.03"]
[Round "1"]
[White "Last7Samurai"]
[Black "Cukiero"]
[Result "1/2-1/2"]
[WhiteElo "2775"]
[BlackElo "2411"]
[TimeControl "180+2"]
[EndTime "15:07:53 PDT"]
[Termination "Game drawn - insufficient material"]

1. d4 {[%clk 0:03:01.9]} 1... Nf6 {[%clk 0:03:01]} 2. Bg5 {[%clk 0:03:01.6]}
2... e6 {[%clk 0:02:59.7]} 3. e4 {[%clk 0:03:02.2]} 3... h6 {[%clk 0:03:01.3]}
4. Bxf6 {[%clk 0:03:03.1]} 4... Qxf6 {[%clk 0:03:03.2]} 5. c3 {[%clk 0:03:04.2]}
5... g6 {[%clk 0:03:03.4]} 6. Bd3 {[%clk 0:03:04.9]} 6... Bg7 {[%clk 0:03:04.8]}
7. Ne2 {[%clk 0:03:05.9]} 7... b6 {[%clk 0:03:05.1]} 8. O-O {[%clk 0:03:06.6]}
8... Bb7 {[%clk 0:03:06.3]} 9. f4 {[%clk 0:03:07.1]} 9... d6 {[%clk 0:03:03.5]}
10. Nd2 {[%clk 0:03:07.6]} 10... Nd7 {[%clk 0:03:03.9]} 11. e5 {[%clk 0:03:06]}
11... Qe7 {[%clk 0:03:04.6]} 12. Be4 {[%clk 0:03:04]} 12... Bxe4 {[%clk
0:02:47.3]} 13. Nxe4 {[%clk 0:03:05.9]} 13... d5 {[%clk 0:02:48.8]} 14. Nf2
{[%clk 0:03:04.4]} 14... f5 {[%clk 0:02:44.4]} 15. exf6 {[%clk 0:03:03.8]} 15...
Nxf6 {[%clk 0:02:43.2]} 16. Qd3 {[%clk 0:03:03.7]} 16... Qf7 {[%clk 0:02:42.1]}
17. Qb5+ {[%clk 0:02:36.2]} 17... Qd7 {[%clk 0:02:42.4]} 18. Qxd7+ {[%clk
0:02:34.6]} 18... Kxd7 {[%clk 0:02:39.8]} 19. Nd3 {[%clk 0:02:34.3]} 19... Ne4
{[%clk 0:02:39.2]} 20. Ng3 {[%clk 0:02:32.2]} 20... Nxg3 {[%clk 0:02:34.7]} 21.
hxg3 {[%clk 0:02:34.1]} 21... Rhf8 {[%clk 0:01:56.7]} 22. a4 {[%clk 0:02:31]}
22... a5 {[%clk 0:01:53.6]} 23. Rae1 {[%clk 0:02:30.8]} 23... Kd6 {[%clk
0:01:48.1]} 24. g4 {[%clk 0:02:30.4]} 24... c5 {[%clk 0:01:46.2]} 25. Ne5 {[%clk
0:02:22.7]} 25... Bxe5 {[%clk 0:01:46.6]} 26. dxe5+ {[%clk 0:02:10.5]} 26... Kc6
{[%clk 0:01:42.5]} 27. g3 {[%clk 0:02:12.4]} 27... h5 {[%clk 0:01:34.9]} 28.
gxh5 {[%clk 0:02:08.5]} 28... gxh5 {[%clk 0:01:36.2]} 29. Kg2 {[%clk 0:02:09.6]}
29... Rf5 {[%clk 0:01:37.4]} 30. Rh1 {[%clk 0:02:08]} 30... Rg8 {[%clk
0:01:27.3]} 31. Rh4 {[%clk 0:02:07.7]} 31... b5 {[%clk 0:01:28]} 32. axb5+
{[%clk 0:02:03.6]} 32... Kxb5 {[%clk 0:01:28.8]} 33. Kf3 {[%clk 0:02:04]} 33...
Kc4 {[%clk 0:01:23.8]} 34. Re2 {[%clk 0:02:02.7]} 34... Kb3 {[%clk 0:01:23.5]}
35. Reh2 {[%clk 0:02:03.8]} 35... a4 {[%clk 0:01:22.4]} 36. R4h3 {[%clk
0:01:56]} 36... c4 {[%clk 0:01:13.9]} 37. Ke3 {[%clk 0:01:52.8]} 37... a3 {[%clk
0:00:56.2]} 38. bxa3 {[%clk 0:01:53.7]} 38... Kxc3 {[%clk 0:00:57.7]} 39. Rxh5
{[%clk 0:01:50.8]} 39... Rxg3+ {[%clk 0:00:53.4]} 40. Kf2 {[%clk 0:01:51.4]}
40... Rxh5 {[%clk 0:00:54.2]} 41. Rxh5 {[%clk 0:01:52.4]} 41... Rg6 {[%clk
0:00:53]} 42. Rg5 {[%clk 0:01:44.4]} 42... Rh6 {[%clk 0:00:51.8]} 43. f5 {[%clk
0:01:45.7]} 43... exf5 {[%clk 0:00:52.5]} 44. Rxf5 {[%clk 0:01:47.6]} 44... Re6
{[%clk 0:00:53.2]} 45. Ke3 {[%clk 0:01:47.5]} 45... d4+ {[%clk 0:00:53.8]} 46.
Ke4 {[%clk 0:01:49.4]} 46... d3 {[%clk 0:00:54.7]} 47. Rf3 {[%clk 0:01:43.4]}
47... Kc2 {[%clk 0:00:53.3]} 48. Kd5 {[%clk 0:01:35.8]} 48... Re8 {[%clk
0:00:46.7]} 49. Kxc4 {[%clk 0:01:32.2]} 49... d2 {[%clk 0:00:47.9]} 50. Rc3+
{[%clk 0:01:32.7]} 50... Kb2 {[%clk 0:00:47.7]} 51. Rd3 {[%clk 0:01:32.8]} 51...
Rc8+ {[%clk 0:00:48.4]} 52. Kb5 {[%clk 0:01:28.9]} 52... Kc2 {[%clk 0:00:47.9]}
53. Rxd2+ {[%clk 0:01:29.5]} 53... Kxd2 {[%clk 0:00:49.3]} 54. a4 {[%clk
0:01:31.2]} 54... Re8 {[%clk 0:00:50.6]} 55. a5 {[%clk 0:01:32]} 55... Rxe5+
{[%clk 0:00:52.2]} 56. Kb6 {[%clk 0:01:33.5]} 56... Kc3 {[%clk 0:00:53.2]} 57.
a6 {[%clk 0:01:35]} 57... Kb4 {[%clk 0:00:54.6]} 58. a7 {[%clk 0:01:34.3]} 58...
Re6+ {[%clk 0:00:55.8]} 59. Kb7 {[%clk 0:01:34.7]} 59... Re7+ {[%clk 0:00:56.7]}
60. Kb8 {[%clk 0:01:31]} 60... Rxa7 {[%clk 0:00:58.6]} 61. Kxa7 {[%clk
0:01:32.3]} 1/2-1/2

[Event "*** Titled Tuesday Blitz"]
[Site "Chess.com"]
[Date "2019.09.03"]
[Round "1"]
[White "Jbd735"]
[Black "eljanov"]
[Result "0-1"]
[WhiteElo "2472"]
[BlackElo "2911"]
[TimeControl "180+2"]
[EndTime "15:07:57 PDT"]
[Termination "eljanov won by resignation"]

1. d4 {[%clk 0:02:51.3]} 1... Nf6 {[%clk 0:03:00]} 2. Bf4 {[%clk 0:02:49]} 2...
c5 {[%clk 0:02:58.8]} 3. c3 {[%clk 0:02:48.9]} 3... Qb6 {[%clk 0:02:55.4]} 4.
Qb3 {[%clk 0:02:30.6]} 4... cxd4 {[%clk 0:02:39.2]} 5. Qxb6 {[%clk 0:02:20.5]}
5... axb6 {[%clk 0:02:41.1]} 6. cxd4 {[%clk 0:02:20.8]} 6... Nc6 {[%clk
0:02:42.4]} 7. Nf3 {[%clk 0:02:12.9]} 7... Nb4 {[%clk 0:02:33.1]} 8. Na3 {[%clk
0:00:56.9]} 8... Rxa3 {[%clk 0:02:33]} 9. bxa3 {[%clk 0:00:58.8]} 9... Nc2+
{[%clk 0:02:34]} 10. Kd1 {[%clk 0:01:00.1]} 10... Nxa1 {[%clk 0:02:34.7]} 11.
Kc1 {[%clk 0:00:56]} 11... Ne4 {[%clk 0:02:26.7]} 12. Be3 {[%clk 0:00:49.9]}
12... d5 {[%clk 0:02:10.3]} 13. Kb2 {[%clk 0:00:50.1]} 13... e6 {[%clk
0:02:03.8]} 14. Kxa1 {[%clk 0:00:31.9]} 14... Bxa3 {[%clk 0:02:04.6]} 15. Nd2
{[%clk 0:00:29.5]} 15... Bd7 {[%clk 0:01:56]} 16. Nxe4 {[%clk 0:00:28.5]} 16...
dxe4 {[%clk 0:01:57.1]} 17. Bd2 {[%clk 0:00:26.5]} 17... Ke7 {[%clk 0:01:51.9]}
18. e3 {[%clk 0:00:16.8]} 18... Rc8 {[%clk 0:01:53.2]} 19. Be2 {[%clk
0:00:16.8]} 19... Rc2 {[%clk 0:01:53]} 20. Rd1 {[%clk 0:00:17.8]} 20... Ba4
{[%clk 0:01:50.2]} 21. Bf1 {[%clk 0:00:13.1]} 21... b5 {[%clk 0:01:37.6]} 22.
Be1 {[%clk 0:00:11.1]} 22... Rxf2 {[%clk 0:00:50.3]} 23. Bxf2 {[%clk 0:00:09.9]}
23... Bxd1 {[%clk 0:00:51.4]} 24. Bxb5 {[%clk 0:00:09.7]} 24... Bc2 {[%clk
0:00:51.4]} 25. Be1 {[%clk 0:00:06.6]} 25... f5 {[%clk 0:00:50]} 26. Bd2 {[%clk
0:00:04.6]} 26... g5 {[%clk 0:00:50.6]} 27. Bc4 {[%clk 0:00:05]} 27... h5 {[%clk
0:00:46.9]} 28. Bb3 {[%clk 0:00:05.1]} 28... Bxb3 {[%clk 0:00:43.3]} 29. axb3
{[%clk 0:00:07]} 29... Bd6 {[%clk 0:00:41.9]} 30. h3 {[%clk 0:00:07.2]} 30... f4
{[%clk 0:00:43]} 31. Kb2 {[%clk 0:00:06.7]} 31... f3 {[%clk 0:00:43.8]} 32. gxf3
{[%clk 0:00:08]} 32... exf3 {[%clk 0:00:45]} 33. Be1 {[%clk 0:00:09.1]} 33... g4
{[%clk 0:00:46.4]} 34. hxg4 {[%clk 0:00:09.9]} 34... hxg4 {[%clk 0:00:47.6]} 35.
Bh4+ {[%clk 0:00:10.7]} 35... Kf7 {[%clk 0:00:48.5]} 36. e4 {[%clk 0:00:12.2]}
36... g3 {[%clk 0:00:47.2]} 37. e5 {[%clk 0:00:12.9]} 37... Bxe5 {[%clk
0:00:48.5]} 38. dxe5 {[%clk 0:00:13.4]} 38... f2 {[%clk 0:00:49.7]} 0-1